[Event "Titled Tuesday Blitz July 25 Early 2023"]
[White "Gholami Orimi, Mahdi"]
[Black "Indjic, Aleksandar"]
[WhiteFideId "12558486"]
[BlackFideId "911925"]
[WhiteElo "2920"]
[BlackElo "2967"]
[Result "0-1"]
[Round "11"]
[TimeControl "180+2"]
[Date "2023.07.25"]
[WhiteClock "0:00:09"]
[BlackClock "0:01:27"]
[Board "6"]

1. d4 {[%clk 0:03:00]}  Nf6 {[%clk 0:02:56]} 2. c4 {[%clk 0:03:01]}  e6 {[%clk 0:02:56]} 3. g3 {[%clk 0:03:02]}  c5 {[%clk 0:02:57]} 4. d5 {[%clk 0:03:02]}  exd5 {[%clk 0:02:56]} 5. cxd5 {[%clk 0:03:03]}  d6 {[%clk 0:02:56]} 6. Nc3 {[%clk 0:03:03]}  g6 {[%clk 0:02:56]} 7. Bg2 {[%clk 0:03:04]}  Bg7 {[%clk 0:02:57]} 8. Nf3 {[%clk 0:03:04]}  O-O {[%clk 0:02:57]} 9. O-O {[%clk 0:03:05]}  Re8 {[%clk 0:02:57]} 10. Bf4 {[%clk 0:03:05]}  h6 {[%clk 0:02:56]} 11. Qc1 {[%clk 0:02:53]}  g5 {[%clk 0:02:55]} 12. Bd2 {[%clk 0:02:54]}  Bf5 {[%clk 0:02:53]} 13. h4 {[%clk 0:02:36]}  g4 {[%clk 0:02:53]} 14. Nh2 {[%clk 0:02:30]}  h5 {[%clk 0:02:50]} 15. f3 {[%clk 0:02:30]}  Nbd7 {[%clk 0:02:49]} 16. e4 {[%clk 0:02:31]}  gxf3 {[%clk 0:02:45]} 17. exf5 {[%clk 0:02:13]}  fxg2 {[%clk 0:02:43]} 18. Kxg2 {[%clk 0:02:14]}  b5 {[%clk 0:02:36]} 19. Nxb5 {[%clk 0:01:47]}  Re2+ {[%clk 0:02:35]} 20. Rf2 {[%clk 0:01:47]}  Rxf2+ {[%clk 0:02:35]} 21. Kxf2 {[%clk 0:01:47]}  Ne5 {[%clk 0:02:35]} 22. Kg2 {[%clk 0:01:33]}  Qd7 {[%clk 0:02:20]} 23. Nc3 {[%clk 0:01:30]}  Qxf5 {[%clk 0:02:19]} 24. Qf1 {[%clk 0:01:31]}  Qc2 {[%clk 0:02:18]} 25. Qe2 {[%clk 0:01:18]}  Qxb2 {[%clk 0:02:02]} 26. Rb1 {[%clk 0:01:08]}  Qc2 {[%clk 0:02:02]} 27. Rc1 {[%clk 0:01:07]}  Qg6 {[%clk 0:01:57]} 28. Bg5 {[%clk 0:01:01]}  Re8 {[%clk 0:01:53]} 29. Qb5 {[%clk 0:00:52]}  a6 {[%clk 0:01:37]} 30. Qa4 {[%clk 0:00:49]}  Rb8 {[%clk 0:01:35]} 31. Qc2 {[%clk 0:00:38]}  Nd3 {[%clk 0:01:33]} 32. Rb1 {[%clk 0:00:14]}  Ne1+ {[%clk 0:01:29]} 33. Rxe1 {[%clk 0:00:09]}  Qxc2+ {[%clk 0:01:27]} 0-1


[Site "https://www.chess.com"]

[Event "Titled Tuesday Blitz July 25 Early 2023"]
[White "Martinez Alcantara, Jose Eduardo"]
[Black "Sychev, Klementy"]
[WhiteFideId "3805662"]
[BlackFideId "4114060"]
[WhiteElo "2990"]
[BlackElo "2856"]
[Result "1-0"]
[Round "11"]
[TimeControl "180+2"]
[Date "2023.07.25"]
[WhiteClock "0:00:25"]
[BlackClock "0:00:00"]
[Board "10"]

1. e4 {[%clk 0:03:00]}  c5 {[%clk 0:02:53]} 2. Nf3 {[%clk 0:03:00]}  d6 {[%clk 0:02:54]} 3. c3 {[%clk 0:03:00]}  Nf6 {[%clk 0:02:54]} 4. h3 {[%clk 0:03:01]}  g6 {[%clk 0:02:52]} 5. Bd3 {[%clk 0:03:01]}  Bg7 {[%clk 0:02:53]} 6. Bc2 {[%clk 0:03:02]}  e5 {[%clk 0:02:53]} 7. O-O {[%clk 0:03:03]}  O-O {[%clk 0:02:51]} 8. d4 {[%clk 0:03:04]}  exd4 {[%clk 0:02:51]} 9. cxd4 {[%clk 0:03:04]}  cxd4 {[%clk 0:02:51]} 10. Nxd4 {[%clk 0:03:05]}  d5 {[%clk 0:02:50]} 11. e5 {[%clk 0:03:05]}  Ne4 {[%clk 0:02:50]} 12. f4 {[%clk 0:03:05]}  f6 {[%clk 0:02:42]} 13. Nc3 {[%clk 0:03:03]}  fxe5 {[%clk 0:02:37]} 14. fxe5 {[%clk 0:03:04]}  Rxf1+ {[%clk 0:02:37]} 15. Qxf1 {[%clk 0:03:04]}  Bxe5 {[%clk 0:02:37]} 16. Be3 {[%clk 0:03:04]}  Nxc3 {[%clk 0:02:33]} 17. bxc3 {[%clk 0:03:05]}  Nc6 {[%clk 0:02:30]} 18. Rb1 {[%clk 0:02:58]}  Bxd4 {[%clk 0:02:04]} 19. cxd4 {[%clk 0:02:59]}  Qe7 {[%clk 0:02:04]} 20. Qf3 {[%clk 0:02:49]}  Be6 {[%clk 0:02:00]} 21. Qg3 {[%clk 0:02:48]}  Rf8 {[%clk 0:01:51]} 22. Re1 {[%clk 0:02:29]}  Qf6 {[%clk 0:01:28]} 23. Kh2 {[%clk 0:02:25]}  Bf7 {[%clk 0:00:51]} 24. Bd3 {[%clk 0:02:06]}  Nxd4 {[%clk 0:00:39]} 25. Rf1 {[%clk 0:02:01]}  Qg7 {[%clk 0:00:36]} 26. Qh4 {[%clk 0:01:40]}  Nc6 {[%clk 0:00:33]} 27. Kh1 {[%clk 0:01:38]}  Be6 {[%clk 0:00:31]} 28. Re1 {[%clk 0:01:34]}  Re8 {[%clk 0:00:28]} 29. Bh6 {[%clk 0:01:29]}  Qe7 {[%clk 0:00:27]} 30. Qf4 {[%clk 0:01:24]}  Qf7 {[%clk 0:00:26]} 31. Qg3 {[%clk 0:01:23]}  Nd4 {[%clk 0:00:17]} 32. Qd6 {[%clk 0:00:53]}  Nf5 {[%clk 0:00:13]} 33. Bxf5 {[%clk 0:00:52]}  gxf5 {[%clk 0:00:11]} 34. Re3 {[%clk 0:00:50]}  f4 {[%clk 0:00:11]} 35. Bxf4 {[%clk 0:00:50]}  Bf5 {[%clk 0:00:10]} 36. Be5 {[%clk 0:00:46]}  Bg6 {[%clk 0:00:07]} 37. Rf3 {[%clk 0:00:47]}  Qe7 {[%clk 0:00:05]} 38. Qxd5+ {[%clk 0:00:40]}  Qe6 {[%clk 0:00:05]} 39. Qxe6+ {[%clk 0:00:36]}  Rxe6 {[%clk 0:00:06]} 40. Bd4 {[%clk 0:00:37]}  Re2 {[%clk 0:00:07]} 41. a3 {[%clk 0:00:33]}  a6 {[%clk 0:00:07]} 42. Bf2 {[%clk 0:00:31]}  Be4 {[%clk 0:00:06]} 43. Rf4 {[%clk 0:00:32]}  Bc6 {[%clk 0:00:06]} 44. Kh2 {[%clk 0:00:32]}  Re4 {[%clk 0:00:06]} 45. Rf5 {[%clk 0:00:31]}  Kg7 {[%clk 0:00:06]} 46. g4 {[%clk 0:00:29]}  Rc4 {[%clk 0:00:04]} 47. Bc5 {[%clk 0:00:25]}  Rc3 {[%clk 0:00:00]} 48. Bd4+ {[%clk 0:00:25]} 1-0


[Site "https://www.chess.com"]

[Event "Titled Tuesday Blitz July 25 Early 2023"]
[White "Anton Guijarro, David"]
[Black "Fiorito, Joaquin"]
[WhiteFideId "2285525"]
[BlackFideId "180173"]
[WhiteElo "2961"]
[BlackElo "2798"]
[Result "1-0"]
[Round "11"]
[TimeControl "180+2"]
[Date "2023.07.25"]
[WhiteClock "0:01:34"]
[BlackClock "0:00:40"]
[Board "14"]

1. d4 {[%clk 0:03:00]}  Nf6 {[%clk 0:03:00]} 2. Nf3 {[%clk 0:03:01]}  d5 {[%clk 0:03:00]} 3. e3 {[%clk 0:03:01]}  c5 {[%clk 0:02:59]} 4. dxc5 {[%clk 0:03:00]}  e6 {[%clk 0:02:59]} 5. b4 {[%clk 0:03:01]}  a5 {[%clk 0:02:55]} 6. c3 {[%clk 0:03:00]}  Bd7 {[%clk 0:02:55]} 7. Ne5 {[%clk 0:02:52]}  axb4 {[%clk 0:02:48]} 8. cxb4 {[%clk 0:02:51]}  b6 {[%clk 0:02:49]} 9. a4 {[%clk 0:02:46]}  bxc5 {[%clk 0:02:48]} 10. b5 {[%clk 0:02:46]}  Bd6 {[%clk 0:02:47]} 11. Bb2 {[%clk 0:02:45]}  O-O {[%clk 0:02:46]} 12. Nd2 {[%clk 0:02:43]}  Qc7 {[%clk 0:02:43]} 13. f4 {[%clk 0:02:34]}  c4 {[%clk 0:02:37]} 14. Qc2 {[%clk 0:02:31]}  Bb4 {[%clk 0:02:33]} 15. Bc3 {[%clk 0:02:24]}  Bc5 {[%clk 0:02:32]} 16. Nxd7 {[%clk 0:02:00]}  Nbxd7 {[%clk 0:02:31]} 17. Bd4 {[%clk 0:01:59]}  Bxd4 {[%clk 0:02:31]} 18. exd4 {[%clk 0:02:00]}  Qxf4 {[%clk 0:02:32]} 19. Nf3 {[%clk 0:02:00]}  e5 {[%clk 0:02:29]} 20. Qd2 {[%clk 0:02:00]}  Qf5 {[%clk 0:02:22]} 21. Be2 {[%clk 0:01:56]}  Ne4 {[%clk 0:02:13]} 22. Qe3 {[%clk 0:01:52]}  exd4 {[%clk 0:01:14]} 23. Nxd4 {[%clk 0:01:52]}  Qf6 {[%clk 0:01:12]} 24. Rf1 {[%clk 0:01:52]}  Qh4+ {[%clk 0:01:10]} 25. g3 {[%clk 0:01:51]}  Qxh2 {[%clk 0:01:06]} 26. Nf5 {[%clk 0:01:44]}  Rae8 {[%clk 0:01:03]} 27. O-O-O {[%clk 0:01:39]}  Nd6 {[%clk 0:00:53]} 28. Ne7+ {[%clk 0:01:34]}  Kh8 {[%clk 0:00:44]} 29. Rh1 {[%clk 0:01:34]}  Qg2 {[%clk 0:00:44]} 30. Rdg1 {[%clk 0:01:34]}  Qe4 {[%clk 0:00:41]} 31. Qxe4 {[%clk 0:01:33]}  Nxe4 {[%clk 0:00:42]} 32. Rxh7+ {[%clk 0:01:33]}  Kxh7 {[%clk 0:00:40]} 33. Rh1# {[%clk 0:01:34]} 1-0


[Site "https://www.chess.com"]

[Event "Titled Tuesday Blitz July 25 Early 2023"]
[White "Tsaruk, Maksim"]
[Black "Sarana, Alexey"]
[WhiteFideId "13511173"]
[BlackFideId "24133795"]
[WhiteElo "2789"]
[BlackElo "3042"]
[Result "0-1"]
[Round "11"]
[TimeControl "180+2"]
[Date "2023.07.25"]
[WhiteClock "0:00:01"]
[BlackClock "0:01:35"]
[Board "16"]

1. e4 {[%clk 0:03:00]}  e5 {[%clk 0:02:58]} 2. Nf3 {[%clk 0:03:01]}  Nc6 {[%clk 0:02:58]} 3. Bb5 {[%clk 0:03:01]}  Nf6 {[%clk 0:02:57]} 4. d3 {[%clk 0:03:00]}  Bc5 {[%clk 0:02:57]} 5. c3 {[%clk 0:03:00]}  Qe7 {[%clk 0:02:51]} 6. O-O {[%clk 0:02:56]}  O-O {[%clk 0:02:48]} 7. d4 {[%clk 0:02:43]}  Bb6 {[%clk 0:02:49]} 8. Bxc6 {[%clk 0:02:22]}  bxc6 {[%clk 0:02:47]} 9. Nxe5 {[%clk 0:02:14]}  d6 {[%clk 0:02:29]} 10. Nc4 {[%clk 0:01:38]}  Qxe4 {[%clk 0:02:29]} 11. Nbd2 {[%clk 0:01:31]}  Qf5 {[%clk 0:02:25]} 12. a4 {[%clk 0:01:24]}  a5 {[%clk 0:02:12]} 13. Qf3 {[%clk 0:00:42]}  Qxf3 {[%clk 0:02:10]} 14. Nxf3 {[%clk 0:00:43]}  Ba6 {[%clk 0:02:05]} 15. Nxb6 {[%clk 0:00:43]}  Rab8 {[%clk 0:01:54]} 16. Re1 {[%clk 0:00:44]}  Rxb6 {[%clk 0:01:53]} 17. Nd2 {[%clk 0:00:10]}  Nd5 {[%clk 0:01:53]} 18. f3 {[%clk 0:00:03]}  Nf4 {[%clk 0:01:50]} 19. Re4 {[%clk 0:00:02]}  Ne2+ {[%clk 0:01:38]} 20. Kf2 {[%clk 0:00:02]}  Nxc1 {[%clk 0:01:39]} 21. Rxc1 {[%clk 0:00:03]}  Rxb2 {[%clk 0:01:39]} 22. Ke3 {[%clk 0:00:01]}  f5 {[%clk 0:01:35]} 0-1


[Site "https://www.chess.com"]

[Event "Titled Tuesday Blitz July 25 Early 2023"]
[White "Giri, Anish"]
[Black "Bauman_Guy"]
[WhiteFideId "24116068"]
[WhiteElo "3022"]
[BlackElo "2789"]
[Result "1-0"]
[Round "11"]
[TimeControl "180+2"]
[Date "2023.07.25"]
[WhiteClock "0:00:06"]
[BlackClock "0:00:07"]
[Board "17"]

1. e4 {[%clk 0:03:00]}  c5 {[%clk 0:02:59]} 2. Nf3 {[%clk 0:03:01]}  e6 {[%clk 0:02:59]} 3. d4 {[%clk 0:03:00]}  cxd4 {[%clk 0:03:00]} 4. Nxd4 {[%clk 0:03:01]}  Nc6 {[%clk 0:03:01]} 5. Nc3 {[%clk 0:02:56]}  Nf6 {[%clk 0:03:01]} 6. Ndb5 {[%clk 0:02:52]}  Bc5 {[%clk 0:03:01]} 7. Nd6+ {[%clk 0:02:44]}  Ke7 {[%clk 0:03:01]} 8. Bf4 {[%clk 0:02:44]}  e5 {[%clk 0:03:01]} 9. Nf5+ {[%clk 0:02:44]}  Kf8 {[%clk 0:03:01]} 10. Bg5 {[%clk 0:02:45]}  d6 {[%clk 0:03:01]} 11. Bc4 {[%clk 0:02:37]}  h6 {[%clk 0:02:57]} 12. Bh4 {[%clk 0:02:25]}  g5 {[%clk 0:02:42]} 13. Bg3 {[%clk 0:02:24]}  Bxf5 {[%clk 0:02:24]} 14. exf5 {[%clk 0:02:24]}  Nd4 {[%clk 0:02:25]} 15. Nd5 {[%clk 0:02:16]}  Kg7 {[%clk 0:02:14]} 16. Ne3 {[%clk 0:02:09]}  d5 {[%clk 0:02:03]} 17. Be2 {[%clk 0:01:15]}  Nxe2 {[%clk 0:01:51]} 18. Qxe2 {[%clk 0:01:14]}  d4 {[%clk 0:01:42]} 19. Nc4 {[%clk 0:01:12]}  e4 {[%clk 0:01:41]} 20. O-O-O {[%clk 0:00:54]}  Qd5 {[%clk 0:01:37]} 21. Kb1 {[%clk 0:00:51]}  Rhe8 {[%clk 0:01:32]} 22. h4 {[%clk 0:00:41]}  Qxf5 {[%clk 0:01:09]} 23. hxg5 {[%clk 0:00:41]}  hxg5 {[%clk 0:01:08]} 24. Nd6 {[%clk 0:00:42]}  Bxd6 {[%clk 0:01:04]} 25. Bxd6 {[%clk 0:00:43]}  Qd5 {[%clk 0:01:04]} 26. Bb4 {[%clk 0:00:37]}  Rad8 {[%clk 0:00:58]} 27. Rh3 {[%clk 0:00:30]}  a5 {[%clk 0:00:50]} 28. Bd2 {[%clk 0:00:21]}  d3 {[%clk 0:00:47]} 29. cxd3 {[%clk 0:00:21]}  exd3 {[%clk 0:00:46]} 30. Qf3 {[%clk 0:00:20]}  Ne4 {[%clk 0:00:36]} 31. Be3 {[%clk 0:00:20]}  d2 {[%clk 0:00:32]} 32. Ka1 {[%clk 0:00:19]}  Rc8 {[%clk 0:00:31]} 33. Rhh1 {[%clk 0:00:16]}  Rc2 {[%clk 0:00:29]} 34. Qh5 {[%clk 0:00:16]}  Kf6 {[%clk 0:00:12]} 35. Qf3+ {[%clk 0:00:09]}  Ke7 {[%clk 0:00:11]} 36. Bxg5+ {[%clk 0:00:06]}  Kd7 {[%clk 0:00:11]} 37. Be3 {[%clk 0:00:03]}  Rec8 {[%clk 0:00:10]} 38. Rhf1 {[%clk 0:00:02]}  Qe5 {[%clk 0:00:06]} 39. Qxf7+ {[%clk 0:00:02]}  Kc6 {[%clk 0:00:06]} 40. Qb3 {[%clk 0:00:02]}  Kd6 {[%clk 0:00:05]} 41. f3 {[%clk 0:00:03]}  Nf6 {[%clk 0:00:02]} 42. Bxd2 {[%clk 0:00:02]}  Nd5 {[%clk 0:00:02]} 43. Bxa5 {[%clk 0:00:02]}  Ke6 {[%clk 0:00:03]} 44. Bd2 {[%clk 0:00:01]}  Kf5 {[%clk 0:00:02]} 45. a3 {[%clk 0:00:02]}  Qd4 {[%clk 0:00:02]} 46. Bc1 {[%clk 0:00:02]}  Qc4 {[%clk 0:00:03]} 47. Qxc4 {[%clk 0:00:02]}  Kf6 {[%clk 0:00:03]} 48. Qd4+ {[%clk 0:00:02]}  Ke6 {[%clk 0:00:03]} 49. Qxd5+ {[%clk 0:00:03]}  Ke7 {[%clk 0:00:04]} 50. Bg5+ {[%clk 0:00:03]}  Kf8 {[%clk 0:00:05]} 51. Qf5+ {[%clk 0:00:04]}  Kg8 {[%clk 0:00:06]} 52. Qg6+ {[%clk 0:00:04]}  Kf8 {[%clk 0:00:06]} 53. Qf6+ {[%clk 0:00:04]}  Ke8 {[%clk 0:00:07]} 54. Qe6+ {[%clk 0:00:05]}  Kf8 {[%clk 0:00:07]} 55. Bh6# {[%clk 0:00:06]} 1-0


[Site "https://www.chess.com"]

[Event "Titled Tuesday Blitz July 25 Early 2023"]
[White "Shimanov, Aleksandr"]
[Black "Rozman, Levy"]
[WhiteFideId "4198603"]
[BlackFideId "2039877"]
[WhiteElo "2993"]
[BlackElo "2767"]
[Result "1-0"]
[Round "11"]
[TimeControl "180+2"]
[Date "2023.07.25"]
[WhiteClock "0:00:04"]
[BlackClock "0:00:04"]
[Board "19"]

1. e4 {[%clk 0:03:00]}  c6 {[%clk 0:02:58]} 2. d4 {[%clk 0:02:59]}  d5 {[%clk 0:02:58]} 3. Nc3 {[%clk 0:03:00]}  a6 {[%clk 0:02:58]} 4. f3 {[%clk 0:02:50]}  Qa5 {[%clk 0:02:40]} 5. Be3 {[%clk 0:02:17]}  dxe4 {[%clk 0:02:29]} 6. fxe4 {[%clk 0:02:16]}  Nf6 {[%clk 0:02:29]} 7. e5 {[%clk 0:01:51]}  Ng4 {[%clk 0:02:17]} 8. Bc1 {[%clk 0:01:44]}  c5 {[%clk 0:02:00]} 9. d5 {[%clk 0:01:40]}  Nxe5 {[%clk 0:01:57]} 10. Nf3 {[%clk 0:01:40]}  Bg4 {[%clk 0:01:52]} 11. Be2 {[%clk 0:01:40]}  Bxf3 {[%clk 0:01:48]} 12. Bxf3 {[%clk 0:01:41]}  Nbd7 {[%clk 0:01:43]} 13. O-O {[%clk 0:01:39]}  O-O-O {[%clk 0:01:22]} 14. Bf4 {[%clk 0:01:35]}  Qb4 {[%clk 0:01:17]} 15. Qc1 {[%clk 0:01:19]}  g5 {[%clk 0:01:12]} 16. Bxg5 {[%clk 0:01:17]}  Rg8 {[%clk 0:01:11]} 17. Kh1 {[%clk 0:01:16]}  f6 {[%clk 0:01:10]} 18. Bf4 {[%clk 0:01:13]}  Nxf3 {[%clk 0:00:52]} 19. Rxf3 {[%clk 0:01:13]}  Ne5 {[%clk 0:00:51]} 20. Bxe5 {[%clk 0:01:08]}  fxe5 {[%clk 0:00:51]} 21. a3 {[%clk 0:00:43]}  Qh4 {[%clk 0:00:43]} 22. Qe3 {[%clk 0:00:41]}  e6 {[%clk 0:00:33]} 23. dxe6 {[%clk 0:00:37]}  Qg4 {[%clk 0:00:28]} 24. Qe2 {[%clk 0:00:31]}  Qxe6 {[%clk 0:00:26]} 25. Raf1 {[%clk 0:00:32]}  Be7 {[%clk 0:00:24]} 26. Ne4 {[%clk 0:00:31]}  Kb8 {[%clk 0:00:23]} 27. h3 {[%clk 0:00:26]}  h5 {[%clk 0:00:18]} 28. Rf5 {[%clk 0:00:21]}  h4 {[%clk 0:00:17]} 29. Nd2 {[%clk 0:00:21]}  Bd6 {[%clk 0:00:13]} 30. Qe4 {[%clk 0:00:17]}  Bc7 {[%clk 0:00:14]} 31. Nf3 {[%clk 0:00:16]}  Rgf8 {[%clk 0:00:05]} 32. Nxh4 {[%clk 0:00:15]}  Rh8 {[%clk 0:00:03]} 33. Nf3 {[%clk 0:00:14]}  Qb6 {[%clk 0:00:03]} 34. b3 {[%clk 0:00:13]}  Rde8 {[%clk 0:00:02]} 35. Ng5 {[%clk 0:00:12]}  Qb5 {[%clk 0:00:03]} 36. a4 {[%clk 0:00:09]}  Qa5 {[%clk 0:00:03]} 37. Rf7 {[%clk 0:00:09]}  Qd2 {[%clk 0:00:02]} 38. Nf3 {[%clk 0:00:08]}  Qd6 {[%clk 0:00:01]} 39. Ng5 {[%clk 0:00:05]}  Qd2 {[%clk 0:00:01]} 40. R7f5 {[%clk 0:00:05]}  Reg8 {[%clk 0:00:01]} 41. Qg4 {[%clk 0:00:02]}  e4 {[%clk 0:00:01]} 42. R1f2 {[%clk 0:00:03]}  Qe1+ {[%clk 0:00:01]} 43. Rf1 {[%clk 0:00:03]}  Qe3 {[%clk 0:00:02]} 44. g3 {[%clk 0:00:02]}  Rh6 {[%clk 0:00:02]} 45. Kg2 {[%clk 0:00:02]}  Rhg6 {[%clk 0:00:02]} 46. h4 {[%clk 0:00:03]}  Rd6 {[%clk 0:00:02]} 47. R1f2 {[%clk 0:00:03]}  Rd2 {[%clk 0:00:02]} 48. Rxd2 {[%clk 0:00:03]}  Qxd2+ {[%clk 0:00:03]} 49. Rf2 {[%clk 0:00:04]}  Qc3 {[%clk 0:00:03]} 50. Nxe4 {[%clk 0:00:03]}  Rxg4 {[%clk 0:00:02]} 51. Nxc3 {[%clk 0:00:04]}  Rxg3+ {[%clk 0:00:03]} 52. Kf1 {[%clk 0:00:05]}  Rxc3 {[%clk 0:00:04]} 53. h5 {[%clk 0:00:05]}  Rh3 {[%clk 0:00:04]} 54. Rf5 {[%clk 0:00:05]}  c4 {[%clk 0:00:04]} 55. bxc4 {[%clk 0:00:05]}  Rh4 {[%clk 0:00:05]} 56. Ke2 {[%clk 0:00:04]}  Rxc4 {[%clk 0:00:05]} 57. h6 {[%clk 0:00:04]}  Rh4 {[%clk 0:00:05]} 58. Rf6 {[%clk 0:00:05]}  Bf4 {[%clk 0:00:05]} 59. Rf8+ {[%clk 0:00:03]}  Ka7 {[%clk 0:00:05]} 60. Kd3 {[%clk 0:00:03]}  Bxh6 {[%clk 0:00:05]} 61. Rh8 {[%clk 0:00:02]}  Bg5 {[%clk 0:00:05]} 62. Rg8 {[%clk 0:00:03]}  Bf6 {[%clk 0:00:05]} 63. Rf8 {[%clk 0:00:03]}  Be7 {[%clk 0:00:05]} 64. Rf7 {[%clk 0:00:04]}  Bd8 {[%clk 0:00:06]} 65. Rd7 {[%clk 0:00:03]}  Bb6 {[%clk 0:00:06]} 66. c4 {[%clk 0:00:02]}  Rh3+ {[%clk 0:00:06]} 67. Kc2 {[%clk 0:00:03]}  Bc5 {[%clk 0:00:06]} 68. Kb2 {[%clk 0:00:03]}  Rh4 {[%clk 0:00:04]} 69. Kb3 {[%clk 0:00:03]}  Rh3+ {[%clk 0:00:05]} 70. Kb2 {[%clk 0:00:04]}  a5 {[%clk 0:00:05]} 71. Rd5 {[%clk 0:00:04]}  Bb4 {[%clk 0:00:06]} 72. Rf5 {[%clk 0:00:03]}  Rc3 {[%clk 0:00:06]} 73. Rf4 {[%clk 0:00:04]}  Kb6 {[%clk 0:00:06]} 74. Rg4 {[%clk 0:00:03]}  Kc5 {[%clk 0:00:05]} 75. Rg7 {[%clk 0:00:03]}  b6 {[%clk 0:00:05]} 76. Rc7+ {[%clk 0:00:03]}  Kd6 {[%clk 0:00:04]} 77. Rc8 {[%clk 0:00:03]}  Bc5 {[%clk 0:00:05]} 78. Kxc3 {[%clk 0:00:03]}  Kd7 {[%clk 0:00:05]} 79. Rg8 {[%clk 0:00:03]}  Kc6 {[%clk 0:00:05]} 80. Kd3 {[%clk 0:00:04]}  Kd6 {[%clk 0:00:05]} 81. Ke4 {[%clk 0:00:04]}  Ke6 {[%clk 0:00:05]} 82. Rg6+ {[%clk 0:00:04]}  Kf7 {[%clk 0:00:04]} 83. Rc6 {[%clk 0:00:04]}  Ke7 {[%clk 0:00:04]} 84. Kd5 {[%clk 0:00:05]}  Kd7 {[%clk 0:00:04]} 85. Rg6 {[%clk 0:00:04]} 1-0


[Site "https://www.chess.com"]

[Event "Titled Tuesday Blitz July 25 Early 2023"]
[White "Cherniaiev, Tykhon"]
[Black "Ibarra Jerez, Jose Carlos"]
[WhiteFideId "14182360"]
[BlackFideId "2226332"]
[WhiteElo "2747"]
[BlackElo "2924"]
[Result "1-0"]
[Round "11"]
[TimeControl "180+2"]
[Date "2023.07.25"]
[WhiteClock "0:00:26"]
[BlackClock "0:00:04"]
[Board "22"]

1. Nf3 {[%clk 0:03:00]}  d6 {[%clk 0:02:59]} 2. d4 {[%clk 0:02:59]}  Nf6 {[%clk 0:02:59]} 3. c4 {[%clk 0:02:58]}  g6 {[%clk 0:02:59]} 4. g3 {[%clk 0:02:58]}  Bf5 {[%clk 0:02:59]} 5. Nc3 {[%clk 0:02:58]}  Ne4 {[%clk 0:03:00]} 6. Nxe4 {[%clk 0:02:57]}  Bxe4 {[%clk 0:03:00]} 7. Bg2 {[%clk 0:02:58]}  Bg7 {[%clk 0:03:01]} 8. O-O {[%clk 0:02:58]}  O-O {[%clk 0:03:02]} 9. b3 {[%clk 0:02:57]}  c5 {[%clk 0:03:02]} 10. Bb2 {[%clk 0:02:50]}  Nc6 {[%clk 0:03:02]} 11. e3 {[%clk 0:02:48]}  d5 {[%clk 0:03:03]} 12. Rc1 {[%clk 0:02:41]}  Nb4 {[%clk 0:03:03]} 13. Qd2 {[%clk 0:02:17]}  Nd3 {[%clk 0:02:49]} 14. Rcd1 {[%clk 0:02:12]}  dxc4 {[%clk 0:02:41]} 15. bxc4 {[%clk 0:02:13]}  Nxb2 {[%clk 0:02:26]} 16. Qxb2 {[%clk 0:02:13]}  Qc7 {[%clk 0:02:23]} 17. Qa3 {[%clk 0:02:08]}  Rfc8 {[%clk 0:01:57]} 18. dxc5 {[%clk 0:01:55]}  Qxc5 {[%clk 0:01:52]} 19. Rd8+ {[%clk 0:01:54]}  Rxd8 {[%clk 0:01:01]} 20. Qxc5 {[%clk 0:01:54]}  Bf6 {[%clk 0:00:48]} 21. Nd4 {[%clk 0:01:54]}  b6 {[%clk 0:00:38]} 22. Qb5 {[%clk 0:01:46]}  Bxg2 {[%clk 0:00:36]} 23. Kxg2 {[%clk 0:01:47]}  Rac8 {[%clk 0:00:26]} 24. Qa6 {[%clk 0:01:38]}  Rc7 {[%clk 0:00:22]} 25. Nb5 {[%clk 0:01:37]}  Rcd7 {[%clk 0:00:22]} 26. Rc1 {[%clk 0:01:30]}  Rd2 {[%clk 0:00:20]} 27. Qxa7 {[%clk 0:01:29]}  Rb2 {[%clk 0:00:20]} 28. Qxb6 {[%clk 0:01:25]}  Rdd2 {[%clk 0:00:20]} 29. Qb8+ {[%clk 0:01:22]}  Kg7 {[%clk 0:00:20]} 30. Qf4 {[%clk 0:01:23]}  e5 {[%clk 0:00:13]} 31. Qf3 {[%clk 0:01:18]}  e4 {[%clk 0:00:13]} 32. Qf4 {[%clk 0:01:18]}  Bg5 {[%clk 0:00:10]} 33. Qe5+ {[%clk 0:00:46]}  Bf6 {[%clk 0:00:10]} 34. Qxe4 {[%clk 0:00:46]}  Rxf2+ {[%clk 0:00:10]} 35. Kg1 {[%clk 0:00:47]}  Bg5 {[%clk 0:00:06]} 36. Nd4 {[%clk 0:00:34]}  f5 {[%clk 0:00:06]} 37. Ne6+ {[%clk 0:00:26]}  Kf6 {[%clk 0:00:06]} 38. Nxg5 {[%clk 0:00:26]}  Kxg5 {[%clk 0:00:04]} 39. Qh4# {[%clk 0:00:26]} 1-0


[Site "https://www.chess.com"]